fUST/lending_fUST_20260201
["ID","MTS","AMOUNT","RATE_DAILY","PERIOD"]
[404150175,1769881841660,-229.36779338,0.00036248,15]
[404150176,1769881841669,-300.0,0.00036248,2]
[404150178,1769881841678,-22888.83161499,0.00036248,2]
[404150181,1769881841688,-3922.4883003,0.00036248,2]
[404150183,1769881841697,-817.90078901,0.00036248,2]
[404150185,1769881841708,-260.78712638,0.00036248,2]
[404150187,1769881841717,-244.46833849,0.00036248,10]
[404150189,1769881841726,-330.23197963,0.00036248,2]
[404150191,1769881841735,-294.72415654,0.00036248,2]
[404150193,1769881841744,-197.73258194,0.00036248,12]
[404150195,1769881841753,-52235.44829335,0.00036248,2]
[404150197,1769881841762,-643.54349728,0.00036248,2]
[404150199,1769881841771,-1375.30912305,0.00036248,2]
[404150201,1769881841780,-158.16649023,0.00036248,2]
[404150203,1769881841789,-709.49854537,0.00036248,2]
[404150204,1769881841798,-21787.77564503,0.00036248,2]
[404150206,1769881841807,-6361.83076416,0.00036248,2]
[404150208,1769881841816,-1112.54676894,0.00036248,10]
[404150210,1769881841825,-159.17567,0.00036248,2]
[404150212,1769881841834,-400.72369513,0.00036248,7]
[404150214,1769881841844,-1734.2061534,0.00036248,2]
[404150216,1769881841853,-2808.02892676,0.00036248,7]
[404150218,1769881841862,-2744.54061378,0.00036248,7]
[404150220,1769881841871,-7557.19449131,0.00036248,2]
[404150222,1769881841880,-200.0,0.00036248,10]
[404150224,1769881841890,-512.51283611,0.00036248,2]
[404150226,1769881841899,-968.2453051,0.00036248,2]
[404150228,1769881841908,-185.661807,0.00036248,2]
[404150230,1769881841918,-472.39557315,0.00036248,2]
[404150232,1769881841927,-498.0,0.00036248,7]
[404150234,1769881841936,-30748.24755637,0.00036248,2]
[404150236,1769881841945,-190.97205853,0.00036248,2]
[404150238,1769881841954,-1206.5330604,0.00036248,2]
[404150240,1769881841963,-1410.26178838,0.00036248,2]
[404150242,1769881841972,-657.40696742,0.00036248,2]
[404150244,1769881841981,-1565.33447862,0.00036248,14]
[404150246,1769881841991,-2920.0,0.00036248,2]
[404150248,1769881842000,-156.42852073,0.00036248,7]
[404150250,1769881842008,-826.52346607,0.00036248,15]
[404150252,1769881842018,-200.04371493,0.00036248,2]
[404150254,1769881842027,-389.21178056,0.00036248,2]
[404150256,1769881842036,-203.26646945,0.00036248,2]
[404150258,1769881842046,-1546.13759588,0.00036248,15]
[404150260,1769881842055,-3178.25566413,0.00036248,2]
[404150262,1769881842065,-168.15859355,0.00036248,2]
[404150264,1769881842074,-151.77483509,0.00036248,2]
[404150266,1769881842084,-2548.13239333,0.00036248,7]
[404150268,1769881842093,-178880.76970936,0.00036248,2]
[404150270,1769881842102,-261.0027218,0.00036248,2]
[404150272,1769881842112,-178.88882308,0.00036248,7]
[404150274,1769881842121,-3803.44495352,0.00036248,2]
[404150276,1769881842132,-158.0,0.00036248,10]
[404150278,1769881842141,-675.43566846,0.00036248,2]
[404150280,1769881842150,-1181.60690741,0.00036248,15]
[404150282,1769881842159,-71008.89133514,0.00036248,7]
[404150284,1769881842168,-1020.59119455,0.00036248,7]
[404150286,1769881842177,-1676.30213801,0.00036248,2]
[404150288,1769881842186,-326.75503275,0.00036248,2]
[404150290,1769881842196,-173298.62771791,0.00036248,5]
[404150292,1769881842205,-328.57716098,0.00036248,2]
[404150294,1769881842214,-700.36502519,0.00036248,5]
[404150296,1769881842224,-245.21753242,0.00036248,10]
[404150298,1769881842233,-150.0,0.00036248,7]
[404150300,1769881842242,-258.44354571,0.00036248,2]
[404150302,1769881842251,-178992.10759693,0.00036248,2]
[404150304,1769881842260,-838.85,0.00036248,14]
[404150306,1769881842269,-838.85,0.00036248,14]
[404150308,1769881842278,-838.85,0.00036248,14]
[404150310,1769881842287,-838.85,0.00036248,14]
[404150312,1769881842296,-838.85,0.00036248,14]
[404150314,1769881842306,-838.85,0.00036248,14]
[404150316,1769881842315,-838.85,0.00036248,14]
[404150318,1769881842324,-838.85,0.00036248,14]
[404150320,1769881842334,-838.85,0.00036248,14]
[404150322,1769881842343,-838.85,0.00036248,14]
[404150324,1769881842353,-838.85,0.00036248,14]
[404150326,1769881842362,-838.85,0.00036248,14]
[404150328,1769881842371,-838.85,0.00036248,14]
[404150330,1769881842382,-838.85,0.00036248,14]
[404150332,1769881842392,-838.85,0.00036248,14]
[404150334,1769881842402,-838.85,0.00036248,14]
[404150336,1769881842411,-838.85,0.00036248,14]
[404150338,1769881842420,-838.85,0.00036248,14]
[404150340,1769881842429,-838.85,0.00036248,14]
[404150342,1769881842438,-838.85,0.00036248,14]
[404150344,1769881842447,-838.85,0.00036248,14]
[404150346,1769881842458,-838.85,0.00036248,14]
[404150348,1769881842467,-838.85,0.00036248,14]
[404150350,1769881842477,-838.90862427,0.00036248,14]
[404150352,1769881842486,-184.19097939,0.00036248,120]
[404150354,1769881842495,-184.19097939,0.00036248,120]
[404150356,1769881842504,-184.19097939,0.00036248,120]
[404150358,1769881842514,-333.04850535,0.00036248,120]
[404150360,1769881842523,-333.04850535,0.00036248,120]
[404150363,1769881842534,-333.04850535,0.00036248,120]
[404150365,1769881842547,-333.04850535,0.00036248,120]
[404150367,1769881842556,-333.04850535,0.00036248,120]
[404150369,1769881842565,-333.04850535,0.00036248,120]
[404150371,1769881842575,-333.04850535,0.00036248,120]
[404150372,1769881842586,-333.04850535,0.00036248,120]
[404150375,1769881842596,-333.04850535,0.00036248,120]
[404150377,1769881842605,-333.04850535,0.00036248,120]
[404150378,1769881842615,-333.04850535,0.00036248,120]
[404150380,1769881842627,-333.04850535,0.00036248,120]
[404150382,1769881842637,-333.04850535,0.00036248,120]
[404150385,1769881842647,-333.04850535,0.00036248,120]
[404150386,1769881842657,-250.0,0.00036248,10]
[404150388,1769881842666,-250.0,0.00036248,10]
[404150390,1769881842676,-450.956387,0.00036248,10]
[404150392,1769881842685,-166.52425265,0.00036248,120]
[404150394,1769881842694,-166.52425265,0.00036248,120]
[404150396,1769881842703,-1330.24625973,0.00036277,31]
[404150398,1769881842713,-152.56,0.000363,7]
[404150400,1769881842722,-200.0,0.00036301,120]
[404150402,1769881842732,-722.02,0.00036316,60]
[404150404,1769881842741,-1000.0,0.0003637,120]
[404150406,1769881842750,-722.02,0.00036416,60]
[404150408,1769881842759,-1000.0,0.00036438,120]
[404150411,1769881842769,-168.0,0.000365,2]
[404150414,1769881842778,-722.02,0.00036516,60]
[404150417,1769881842788,-722.02,0.00036616,60]
[404150421,1769881842797,-2968.22,0.000367,16]
[404150424,1769881842807,-1000.0,0.00036712,120]
[404150427,1769881842816,-722.02,0.00036716,60]
[404150429,1769881842826,-168.0,0.00036751,2]
[404150431,1769881842835,-964895.97352543,0.00036789,60]
[404150433,1769881842845,-58715.92537799,0.000368,10]
[404150435,1769881842855,-722.02,0.00036816,60]
[404150437,1769881842864,-10000.0,0.0003684,14]
[404150439,1769881842874,-1809.82005104,0.00036857,3]
[404150442,1769881842884,-200.0,0.00036875,120]
[404150444,1769881842894,-252.72297526,0.000369,120]
[404150446,1769881842903,-600.0,0.00036901,30]
[404150447,1769881842913,-722.02,0.00036916,60]
[404150449,1769881842922,-1000.0,0.00036986,120]
[404150451,1769881842931,-393.72,0.00036986,34]
[404150453,1769881842940,-245.23448961,0.00036999,120]
[404150455,1769881842949,-2044.43092003,0.00037,2]
[404150457,1769881842958,-157.65632153,0.00037,120]
[404150459,1769881842967,-200.0,0.00037,30]
[404150461,1769881842977,-200.0,0.00037,120]
[404150463,1769881842986,-1002.0,0.00037,120]
[404150465,1769881842996,-1000.0,0.00037,120]
[404150467,1769881843005,-168.08,0.00037,7]
[404150469,1769881843014,-722.02,0.00037016,60]
[404150470,1769881843024,-168.0,0.00037063,2]
[404150471,1769881843033,-200.0,0.00037084,120]
[404150472,1769881843042,-200.0,0.0003711,120]
[404150473,1769881843051,-722.02,0.00037116,60]
[404150474,1769881843060,-722.02,0.00037216,60]
[404150475,1769881843069,-1235.08,0.00037237,30]
[404150476,1769881843079,-9000.0,0.00037248,2]
[404150477,1769881843088,-1000000.0,0.00037248,120]
[404150478,1769881843097,-1000.0,0.0003726,120]
[404150479,1769881843107,-163.1662392,0.00037267,2]
[404150480,1769881843116,-722.02,0.00037316,60]
[404150483,1769881843218,-2000.0,0.00037386,120]
[404150484,1769881843228,-777.61,0.000374,30]
[404150485,1769881843237,-722.02,0.00037416,60]
[404150486,1769881843247,-168.0,0.00037427,2]
[404150487,1769881843257,-344.0,0.00037485,30]
[404150489,1769881843267,-168.0,0.00037493,2]
[404150490,1769881843276,-722.02,0.00037516,60]
[404150491,1769881843286,-150.0,0.00037517,2]
[404150492,1769881843297,-150.0,0.00037517,2]
[404150493,1769881843306,-332.68,0.00037521,3]
[404150494,1769881843315,-1000.0,0.00037534,120]
[404150495,1769881843324,-168.0,0.00037592,2]
[404150496,1769881843334,-242.45424,0.000376,120]
[404150497,1769881843344,-722.02,0.00037616,60]
[404150498,1769881843353,-201.66,0.00037657,7]
[404150499,1769881843363,-2968.22,0.000377,19]
[404150500,1769881843372,-722.02,0.00037716,60]
[404150501,1769881843383,-200.0,0.00037752,120]
[404150503,1769881843392,-1021.07882816,0.000378,2]
[404150505,1769881843402,-1000.0,0.00037808,120]
[404150507,1769881843411,-393.72,0.00037808,35]
[404150508,1769881843420,-722.02,0.00037816,60]
[404150509,1769881843430,-466.62080117,0.00037827,120]
[404150510,1769881843439,-168.0,0.00037869,2]
[404150511,1769881843447,-257.75504,0.000379,120]
[404150512,1769881843456,-2000.0,0.000379,120]
[404150513,1769881843465,-158.7,0.000379,7]
[404150514,1769881843473,-168.0,0.00037907,2]
[404150515,1769881843483,-722.02,0.00037916,60]
[404150516,1769881843492,-1000.0,0.00038,120]
[404150518,1769881843501,-824.11813738,0.00038,30]
[404150520,1769881843510,-1017.57323575,0.00038,30]
[404150522,1769881843519,-200.0,0.00038,30]
[404150524,1769881843529,-300.0,0.00038,120]
[404150527,1769881843538,-722.02,0.00038016,60]
[404150530,1769881843552,-1000.0,0.00038082,120]
[404150533,1769881843561,-722.02,0.00038116,60]
[404150535,1769881843570,-722.02,0.00038216,60]
[404150537,1769881843579,-630.0,0.00038222,2]
[404150538,1769881843590,-2151.0,0.00038222,2]
[404150540,1769881843599,-722.02,0.00038316,60]
[404150542,1769881843608,-1000.0,0.00038356,120]
[404150543,1769881843619,-166.0,0.00038356,111]
[404150544,1769881843628,-918.0,0.00038377,5]
[404150545,1769881843637,-1622.99314372,0.00038387,3]
[404150546,1769881843648,-1715.76014876,0.00038387,3]
[404150547,1769881843658,-722.02,0.00038416,120]
[404150548,1769881843668,-7198.78,0.000385,14]
[404150549,1769881843677,-722.02,0.00038516,120]
[404150550,1769881843688,-722.02,0.00038616,120]
[404150551,1769881843697,-879.529745,0.00038616,60]
[404150552,1769881843706,-615.670821,0.00038616,60]
[404150553,1769881843716,-1000.0,0.0003863,120]
[404150554,1769881843725,-393.72,0.0003863,36]
[404150555,1769881843734,-313.49245058,0.0003867,120]
[404150556,1769881843743,-722.02,0.00038716,120]
[404150557,1769881843752,-752.0022637,0.00038747,30]
[404150558,1769881843761,-378.942317,0.00038747,30]
[404150559,1769881843771,-722.02,0.00038816,120]
[404150560,1769881843781,-10185.12655556,0.00038875,60]
[404150561,1769881843791,-2000.0,0.000389,120]
[404150563,1769881843800,-1000.0,0.00038904,120]
[404150564,1769881843810,-722.02,0.00038916,120]
[404150566,1769881843820,-389.76755398,0.00039,120]
[404150567,1769881843831,-200.0,0.00039,30]
[404150568,1769881843840,-3898.65590539,0.00039,120]
[404150569,1769881843850,-1000.0,0.00039,120]
[404150570,1769881843859,-722.02,0.00039016,120]
[404150571,1769881843868,-722.02,0.00039116,120]
[404150572,1769881843879,-1000.0,0.00039178,120]
[404150573,1769881843888,-777.61,0.000392,30]
[404150574,1769881843897,-722.02,0.00039216,120]
[404150575,1769881843906,-722.02,0.00039316,120]
[404150576,1769881843916,-344.0,0.00039359,90]
[404150577,1769881843927,-607762.81062832,0.000394,10]
[404150578,1769881843938,-722.02,0.00039416,120]
[404150579,1769881843947,-1000.0,0.00039452,120]
[404150580,1769881843956,-393.72,0.00039452,37]
[404150581,1769881843965,-169.58,0.000395,2]
[404150582,1769881843974,-152.56,0.000395,7]
[404150583,1769881843983,-722.02,0.00039516,120]
[404150584,1769881843994,-860.49199099,0.00039575,3]
[404150585,1769881844004,-257.75504,0.000396,120]
[404150586,1769881844015,-722.02,0.00039616,120]
[404150587,1769881844024,-150.8913701,0.0003966,2]
[404150588,1769881844033,-722.02,0.00039716,120]
[404150589,1769881844043,-1000.0,0.00039726,120]
[404150590,1769881844053,-168.51,0.000398,7]
[404150591,1769881844061,-722.02,0.00039816,120]
[404150592,1769881844072,-494.80595024,0.00039827,120]
[404150593,1769881844082,-543.26956883,0.00039877,120]
[404150594,1769881844091,-2000.0,0.000399,120]
[404150595,1769881844100,-200.0,0.00039914,120]
[404150596,1769881844109,-200.0,0.00039914,120]
[404150597,1769881844118,-200.0,0.00039914,120]
[404150598,1769881844128,-200.0,0.00039914,120]
[404150599,1769881844137,-200.0,0.00039914,120]
[404150600,1769881844146,-201.47555488,0.00039914,120]
[404150601,1769881844156,-722.02,0.00039916,120]
[404150602,1769881844165,-500.0,0.0004,2]
[404150603,1769881844174,-161.5466207,0.0004,14]
[404150604,1769881844185,-561.96649894,0.0004,2]
[404150605,1769881844194,-278.0529537,0.0004,10]
[404150606,1769881844205,-874.99749054,0.0004,120]
[404150607,1769881844215,-500.0,0.0004,120]
[404150608,1769881844225,-171.62406598,0.0004,30]
[404150609,1769881844235,-212.94111125,0.0004,30]
[404150610,1769881844244,-1103.95036725,0.0004,120]
[404150611,1769881844253,-335.93530225,0.0004,120]
[404150612,1769881844262,-438.73254644,0.0004,120]
[404150613,1769881844271,-1137.05149782,0.0004,30]
[404150614,1769881844280,-200.0,0.0004,30]
[404150615,1769881844289,-200.0,0.0004,30]
[404150617,1769881844299,-300.0,0.0004,120]
[404150619,1769881844308,-242.0,0.0004,21]
[404150620,1769881844317,-1410.2379,0.0004,120]
[404150621,1769881844326,-200.0,0.0004,120]
[404150622,1769881844335,-697.80045304,0.0004,120]
[404150623,1769881844344,-1330.0,0.0004,120]
[404150624,1769881844354,-1000.0,0.0004,120]
[404150625,1769881844363,-722.02,0.00040016,120]
[404150626,1769881844372,-722.02,0.00040116,120]
[404150627,1769881844384,-2000.0,0.00040126,120]
[404150628,1769881844393,-722.02,0.00040216,120]
[404150629,1769881844402,-393.72,0.00040273,38]
[404150630,1769881844412,-1000.0,0.00040274,120]
[404150631,1769881844421,-722.02,0.00040316,120]
[404150632,1769881844430,-722.02,0.00040416,120]
[404150633,1769881844440,-722.02,0.00040516,120]
[404150634,1769881844449,-150.0,0.00040517,2]
[404150635,1769881844458,-1000.0,0.00040548,120]
[404150636,1769881844467,-720.0,0.00040591,60]
[404150637,1769881844476,-722.02,0.00040616,120]
[404150638,1769881844485,-7198.78,0.000407,14]
[404150639,1769881844494,-722.02,0.00040716,120]
[404150640,1769881844503,-231.88691742,0.0004079,3]
[404150641,1769881844511,-722.02,0.00040816,120]
[404150642,1769881844521,-1000.0,0.00040822,120]
[404150643,1769881844531,-2000.0,0.000409,120]
[404150644,1769881844541,-722.02,0.00040916,120]
[404150645,1769881844551,-544.7,0.00040993,120]
[404150646,1769881844560,-200.0,0.00041,30]
[404150647,1769881844570,-1000.0,0.00041,120]
[404150648,1769881844580,-1500.0,0.00041,120]
[404150649,1769881844589,-777.61,0.00041,30]
[404150650,1769881844598,-722.02,0.00041016,120]
[404150651,1769881844607,-393.72,0.00041095,39]
[404150652,1769881844616,-180.71022885,0.00041096,31]
[404150653,1769881844625,-948.28,0.00041096,120]
[404150654,1769881844635,-402.48,0.00041096,120]
[404150655,1769881844644,-1000.0,0.00041096,120]
[404150656,1769881844653,-161.75457638,0.000411,120]
[404150657,1769881844662,-161.75457638,0.000411,120]
[404150658,1769881844671,-161.75457638,0.000411,120]
[404150659,1769881844680,-161.75457638,0.000411,120]
[404150660,1769881844689,-161.75457638,0.000411,120]
[404150661,1769881844698,-161.75457638,0.000411,120]
[404150662,1769881844707,-161.75457638,0.000411,120]
[404150663,1769881844716,-161.75457638,0.000411,120]
[404150664,1769881844725,-161.75,0.000411,120]
[404150665,1769881844734,-234.43920214,0.000411,120]
[404150666,1769881844743,-234.43920214,0.000411,120]
[404150667,1769881844753,-234.43920214,0.000411,120]
[404150668,1769881844762,-234.43920214,0.000411,120]
[404150669,1769881844771,-234.43920214,0.000411,120]
[404150670,1769881844780,-234.43920214,0.000411,120]
[404150671,1769881844789,-234.43920214,0.000411,120]
[404150672,1769881844798,-234.43920214,0.000411,120]
[404150673,1769881844807,-234.43920214,0.000411,120]
[404150674,1769881844816,-234.43920214,0.000411,120]
[404150675,1769881844826,-234.43920214,0.000411,120]
[404150676,1769881844834,-234.43920214,0.000411,120]
[404150677,1769881844844,-234.43920214,0.000411,120]
[404150678,1769881844853,-234.43920214,0.000411,120]
[404150679,1769881844862,-234.43920214,0.000411,120]
[404150680,1769881844872,-234.43920214,0.000411,120]
[404150681,1769881844882,-234.43920214,0.000411,120]
[404150682,1769881844891,-234.43920214,0.000411,120]
[404150683,1769881844901,-234.43920214,0.000411,120]
[404150684,1769881844910,-234.43,0.000411,120]
[404150685,1769881844920,-246.48334857,0.000411,120]
[404150686,1769881844929,-246.48334857,0.000411,120]
[404150688,1769881844939,-246.48334857,0.000411,120]
[404150689,1769881844948,-246.48334857,0.000411,120]
[404150690,1769881844957,-246.48334857,0.000411,120]
[404150691,1769881844966,-246.48334857,0.000411,120]
[404150692,1769881844975,-246.48334857,0.000411,120]
[404150693,1769881844986,-246.48334857,0.000411,120]
[404150694,1769881844995,-246.48334857,0.000411,120]
[404150695,1769881845005,-246.48334857,0.000411,120]
[404150696,1769881845014,-246.48334857,0.000411,120]
[404150697,1769881845023,-246.48334857,0.000411,120]
[404150698,1769881845032,-246.48334857,0.000411,120]
[404150699,1769881845041,-246.48334857,0.000411,120]
[404150700,1769881845051,-246.48334857,0.000411,120]
[404150701,1769881845060,-246.48334857,0.000411,120]
[404150702,1769881845070,-246.48334857,0.000411,120]
[404150703,1769881845079,-246.48334857,0.000411,120]
[404150704,1769881845088,-246.48334857,0.000411,120]
[404150705,1769881845098,-246.48,0.000411,120]
[404150706,1769881845107,-722.02,0.00041116,120]
[404150707,1769881845116,-722.02,0.00041216,120]
[404150708,1769881845126,-630.0,0.00041222,2]
[404150709,1769881845137,-2151.0,0.00041222,2]
[404150710,1769881845146,-257.75504,0.000413,120]
[404150711,1769881845156,-722.02,0.00041316,120]
[404150712,1769881845165,-300.0,0.000414,120]
[404150713,1769881845175,-722.02,0.00041416,120]
[404150714,1769881845184,-722.02,0.00041516,120]
[404150715,1769881845193,-722.02,0.00041616,120]
[404150716,1769881845202,-722.02,0.00041716,120]
[404150717,1769881845212,-722.02,0.00041816,120]
[404150718,1769881845222,-522.9910993,0.00041827,120]
[404150719,1769881845231,-2000.0,0.000419,120]
[404150720,1769881845240,-722.88381025,0.00041916,120]
[404150721,1769881845249,-393.72,0.00041917,40]
[404150722,1769881845259,-344.0,0.00041983,90]
[404150723,1769881845268,-200.0,0.00042,30]
[404150724,1769881845277,-300.0,0.00042,120]
[404150725,1769881845287,-1345.0,0.00042,120]
[404150726,1769881845296,-617.0002723,0.00042,120]
[404150727,1769881845305,-7198.78,0.00042,14]
[404150728,1769881845315,-5138.62147304,0.000425,120]
[404150729,1769881845325,-393.72,0.00042739,41]
[404150730,1769881845335,-242.83,0.000428,120]
[404150731,1769881845344,-2000.0,0.00042866,120]
[404150732,1769881845353,-2000.0,0.000429,120]
[404150733,1769881845363,-257.75508,0.00043,120]
[404150734,1769881845373,-506.78,0.00043,120]
[404150735,1769881845383,-200.0,0.00043,30]
[404150736,1769881845392,-1000.0,0.00043,120]
[404150737,1769881845401,-1500.0,0.00043,120]
[404150738,1769881845411,-232.71,0.0004321,120]
[404150739,1769881845421,-16626.3050108,0.00043334,2]
[404150740,1769881845431,-544.7,0.00043386,120]
[404150741,1769881845441,-20570.59154871,0.000435,120]
[404150742,1769881845450,-150.0,0.00043517,2]
[404150743,1769881845460,-393.72,0.00043561,42]
[404150744,1769881845472,-551.17624837,0.00043827,120]
[404150745,1769881845482,-2000.0,0.000439,120]
[404150746,1769881845494,-1500.0,0.00044,120]
[404150747,1769881845503,-300.0,0.00044,120]
[404150748,1769881845513,-777.61,0.00044,30]
[404150749,1769881845522,-630.0,0.00044222,2]
[404150750,1769881845532,-2151.0,0.00044222,2]
[404150751,1769881845543,-10000.0,0.0004427,7]
[404150752,1769881845553,-393.72,0.00044383,43]
[404150753,1769881845562,-336.0,0.0004452,66]
[404150754,1769881845571,-344.0,0.00044607,90]
[404150755,1769881845581,-864.0,0.0004465,60]
[404150756,1769881845590,-2000.0,0.000449,120]
[404150757,1769881845598,-297.5743459,0.000449,120]
[404150758,1769881845608,-3709.8300997,0.00044935,2]
[404150759,1769881845619,-344.0,0.00044982,90]
[404150760,1769881845629,-882.48664458,0.00045,20]
[404150761,1769881845638,-470.07695349,0.00045,120]
[404150762,1769881845648,-506.19545927,0.00045,120]
[404150763,1769881845657,-225.87947644,0.00045,120]
[404150764,1769881845666,-766.57504365,0.00045,120]
[404150765,1769881845675,-1500.0,0.00045,120]
[404150766,1769881845684,-11000.0,0.00045,30]
[404150767,1769881845694,-5499.999999,0.00045,30]
[404150768,1769881845705,-144142.92939338,0.00045,90]
[404150769,1769881845714,-2498.2736828,0.00045,120]
[404150771,1769881845807,-200.0,0.00045,120]
[404150772,1769881845817,-169.9437498,0.00045,120]
[404150774,1769881845827,-232.4,0.00045,120]
[404150775,1769881845838,-10699.999999,0.00045,120]
[404150776,1769881845847,-393.72,0.00045205,44]
[404150777,1769881845857,-301.0,0.0004522,120]
[404150778,1769881845866,-258.09115801,0.000454,120]
[404150779,1769881845877,-188103.2789,0.0004544,30]
[404150780,1769881845888,-2000.0,0.00045605,120]
[404150781,1769881845898,-544.7,0.00045779,120]
[404150782,1769881845908,-579.36139743,0.00045827,120]
[404150783,1769881845918,-2000.0,0.000459,120]
[404150784,1769881845928,-300.0,0.00046,120]
[404150785,1769881845939,-1500.0,0.00046,120]
[404150786,1769881845950,-1204.08889721,0.00046,120]
[404150787,1769881845960,-271.74125511,0.00046,30]
[404150788,1769881845970,-777.61,0.00046,30]
[404150789,1769881845980,-393.72,0.00046027,45]
[404150790,1769881845990,-150.33,0.000461,2]
[404150791,1769881845999,-150.0,0.00046517,2]
[404150792,1769881846010,-393.72,0.00046849,46]
[404150793,1769881846020,-2000.0,0.000469,120]
[404150794,1769881846031,-1885.12,0.00046922,13]
[404150796,1769881846041,-300.0,0.00047,120]
[404150797,1769881846052,-1500.0,0.00047,120]
[404150798,1769881846062,-1000.0,0.00047,120]
[404150799,1769881846072,-188.30842652,0.00047,120]
[404150800,1769881846082,-169.58,0.00047,2]
[404150801,1769881846091,-630.0,0.00047222,2]
[404150802,1769881846100,-2151.0,0.00047222,2]
[404150803,1769881846109,-344.0,0.00047231,90]
[404150804,1769881846119,-822.1,0.000475,120]
[404150805,1769881846128,-2500.2,0.00047527,13]
[404150806,1769881846138,-393.72,0.00047671,47]
[404150807,1769881846148,-607.54654649,0.00047827,120]
[404150808,1769881846158,-2000.0,0.000479,120]
[404150809,1769881846168,-244.09327905,0.00048,120]
[404150810,1769881846179,-1103.0,0.00048,120]
[404150811,1769881846190,-300.0,0.00048,120]
[404150813,1769881846199,-1500.0,0.00048,120]
[404150814,1769881846210,-544.7,0.00048172,120]
[404150815,1769881846221,-7957.95,0.00048193,13]
[404150816,1769881846230,-795.87178705,0.00048345,120]
[404150817,1769881846241,-393.72,0.00048493,48]
[404150818,1769881846251,-296.20432348,0.00048513,120]
[404150819,1769881846260,-188.95205189,0.00048537,4]
[404150820,1769881846270,-1397.0,0.00048767,120]
[404150821,1769881846280,-2000.0,0.000489,120]
[404150822,1769881846290,-3573.80602865,0.000489,120]
[404150823,1769881846299,-2013.011661,0.00048971,120]
[404150824,1769881846308,-316.76906232,0.00049,15]
[404150825,1769881846318,-3152.0,0.00049,120]
[404150826,1769881846327,-1500.0,0.00049,120]
[404150827,1769881846336,-1000.0,0.00049,120]
[404150828,1769881846347,-4006.0,0.00049,30]
[404150829,1769881846356,-1000.0,0.00049115,120]
[404150830,1769881846365,-500.0,0.00049315,2]
[404150831,1769881846376,-208.26462913,0.00049315,120]
[404150832,1769881846388,-393.72,0.00049315,49]
[404150833,1769881846398,-299.0,0.00049315,120]
[404150834,1769881846407,-299.0,0.00049315,120]
[404150835,1769881846416,-299.0,0.00049315,120]
[404150836,1769881846425,-299.0,0.00049315,120]
[404150837,1769881846436,-299.0,0.00049315,120]
[404150838,1769881846445,-299.0,0.00049315,120]
[404150839,1769881846454,-299.0,0.00049315,120]
[404150840,1769881846463,-299.0,0.00049315,120]
[404150841,1769881846472,-299.0,0.00049315,120]
[404150842,1769881846481,-299.0,0.00049315,120]
[404150843,1769881846490,-299.0,0.00049315,120]
[404150844,1769881846499,-299.0,0.00049315,120]
[404150845,1769881846509,-299.0,0.00049315,120]
[404150846,1769881846519,-299.0,0.00049315,120]
[404150847,1769881846528,-299.0,0.00049315,120]
[404150848,1769881846538,-299.0,0.00049315,120]
[404150849,1769881846548,-299.0,0.00049315,120]
[404150850,1769881846557,-299.0,0.00049315,120]
[404150851,1769881846567,-299.0,0.00049315,120]
[404150852,1769881846579,-299.0,0.00049315,120]
[404150853,1769881846591,-299.0,0.00049315,120]